Cogmind - Beta 16.1 @@@ ROGUE MODE // 2026.02.10 @ 09:39:36 Player: J1ang-5h1 Result: Self-destructed Performance ------------- Evolutions (2) 1000 Regions Visited (3) 600 Robots Destroyed (45) 225 Value Destroyed (1120) 1120 Prototype IDs (3) 60 Alien Tech Used (0) 0 Bonus (0) 0 TOTAL SCORE: 3005 Bonus ------- None Cogmind --------- Core Integrity 50/550 Matter 103/300 Energy 100/100 System Corruption 0% Temperature Cool (0) Movement Rolling (130) Ox2 Location -8/Materials Parts ------- > --- POWER (1) -------- (None) > --- PROPULSION (4) --- Subdweller Monowheel > --- UTILITY (4) ------ High-capacity Storage Unit Visual Processing Unit Reactive Plating > --- WEAPON (2) ------- (None) > --- INVENTORY (20) --- Subdweller Power Source Nuclear Core High-capacity Matter Pod (164) Weight Redist. System Subdweller Optics Improved Terrain Scanner Seismic Detector Improved Power Shielding Peak State ------------ > --- POWER ------------ (None) > --- PROPULSION ------- Compact Wheel Subdweller Monowheel > --- UTILITY ---------- High-capacity Storage Unit Visual Processing Unit > --- WEAPON ----------- Subdweller Beam Cannon Mini Grenade Launcher > --- INVENTORY -------- Subdweller Power Source Nuclear Core Subdweller Monowheel High-capacity Matter Pod Weight Redist. System Subdweller Optics Improved Terrain Scanner Seismic Detector Improved Power Shielding Light Armor Plating Reactive Plating Mini Grenade Launcher [Rating: 12] Favorites ----------- Power Ion Engine Engine Ion Engine Propulsion Aluminum Leg Leg Aluminum Leg Wheel Compact Wheel Utility Visual Processing Unit Storage Medium Storage Unit Processor Visual Processing Unit Protection Reactive Plating Weapon Light Assault Rifle Energy Cannon Subdweller Beam Cannon Ballistic Gun Light Assault Rifle Launcher Mini Grenade Launcher Special Weapon Mining Laser Build | -11 -10 -10 -8 ------- Run | Yrd Mat Sub Mat Slots Evolved 4 | . . . 4 Power . | . . . . Propulsion 2 | . . . 2 Utility 2 | . . . 2 Weapon . | . . . . Parts Attached 27 | 6 9 7 5 Power 4 | 1 1 2 . Engine 4 | 1 1 2 . Core . | . . . . Reactor . | . . . . Propulsion 9 | 2 3 2 2 Treads . | . . . . Leg 4 | 2 2 . . Wheel 5 | . 1 2 2 Hover . | . . . . Flight . | . . . . Utility 7 | 1 3 1 2 Device . | . . . . Storage 4 | 1 2 1 . Processor 1 | . 1 . . Hackware . | . . . . Protection 2 | . . . 2 Artifact . | . . . . Weapon 7 | 2 2 2 1 Energy Gun . | . . . . Energy Cannon 1 | . . 1 . Ballistic Gun 3 | 2 1 . . Ballistic Cannon . | . . . . Launcher 2 | . 1 . 1 Special Weapon 1 | . . 1 . Impact Weapon . | . . . . Slashing Weapon . | . . . . Piercing Weapon . | . . . . Special Melee Weapon . | . . . . Unidentified Prototypes . | . . . . Parts Lost 14 | . 1 6 7 Power 2 | . . 2 . Propulsion 5 | . 1 2 2 Utility 1 | . . . 1 Weapon 6 | . . 2 4 Highest Loss Streak 6 | . 1 4 6 To Critical Strikes . | . . . . Average Backups 9 | 2 8 11 10 Power . | . . 1 1 Propulsion 1 | . . 1 . Utility 4 | . 4 5 6 Weapon 2 | 1 3 3 . Tool/Special . | . . . . Unused Backups 8 | . 1 . 7 Power 1 | . . . 1 Propulsion . | . . . . Utility 6 | . . . 6 Weapon 1 | . 1 . . Tool/Special . | . . . . Average Slot Usage (%) 85 | . 99 81 37 Engine 12 | . 14 13 . Leg 14 | . 23 5 . Wheel 6 | . 4 11 7 Storage 13 | . 14 14 9 Processor 13 | . 13 14 9 Energy Cannon 1 | . . 1 3 Ballistic Gun 20 | . 27 15 3 Special Weapon 1 | . . 4 . Peak Build Rating 12 | 6 10 11 12 Average Rating 8 | 4 8 9 8 On Entrance 6 | . 6 9 11 Avg Prop Armor Cover (%) 9 | . 9 . . Naked Turns . | . . . . Heaviest Build 54 | 13 18 54 50 Greatest Support 40 | 20 20 40 20 Greatest Overweight (x) 13 | 1 1 7 13 Average Overweight (x) . | . . 1 2 Largest Inventory Capacity 20 | 8 15 20 20 Average Capacity 13 | 7 9 18 20 Most Carried 14 | 6 10 13 14 Average Carried 9 | 2 8 11 10 Final Capacity 20 | 8 10 20 20 Final Carried 10 | 4 10 9 8 Class Distribution -------------------- 100% | Mutant Dominant Class ---------------- Mutant | -10/Materials Mutant | -10/Subcaves Mutant | -8/Materials Resources | -11 -10 -10 -8 ----------- Run | Yrd Mat Sub Mat Matter Collected 1019 | 196 529 240 54 Remotely . | . . . . Salvage Created 1105 | 111 744 90 160 Parts 75 | 5 51 6 13 Haulers Intercepted 2 | . 2 . . Recyclers Shooed 1 | . 1 . . Parts Field Recycled . | . . . . Retrieved Matter . | . . . . Parts Self-Destructed . | . . . . Prevented . | . . . . Parts Restored . | . . . . Kills | -11 -10 -10 -8 ------- Run | Yrd Mat Sub Mat Combat Hostiles Destroyed 32 | . 20 4 8 Guns 15 | . 13 2 . Cannons 2 | . . 2 . AOE 15 | . 7 . 8 Classes Destroyed 10 | 2 6 1 1 Worker 2 | . 2 . . Builder 3 | . 1 . 2 Tunneler 1 | 1 . . . Hauler 2 | . 2 . . Recycler 2 | 1 1 . . Watcher 3 | . 3 . . Swarmer 9 | . 9 . . Grunt 17 | . 11 . 6 Sentry 2 | . . . 2 Subdweller 4 | . . 4 . Best Kill Streak 10 | 2 9 2 10 Combat Bots Only 8 | . 6 2 8 Max Kills in Single Turn 4 | 1 4 1 1 Gunslinging . | . . . . Exploded 3 | . 3 . 1 Melee . | . . . . Uniques/NPCs Destroyed . | . . . . Combat | -11 -10 -10 -8 -------- Run | Yrd Mat Sub Mat Hostile Shots Fired 176 | . 45 42 89 Missed 52 | . 15 12 25 Hits 124 | . 30 30 64 Projectile 124 | . 30 30 64 Critical Strikes 4 | . 2 . 2 Damage Taken 2338 | . 330 734 1274 Core 745 | . 51 194 500 Absorbed by Shields . | . . . . Ignored by Resistances 3 | . . . 3 Core Remaining (%) 51 | 100 . 2 . Volleys Fired 140 | 7 56 53 24 Largest 2 | 2 2 2 2 Hottest 120 | 40 50 120 100 Shots Fired 218 | 14 108 69 27 Gun 178 | 14 103 57 4 Cannon 7 | . . 4 3 Launcher 25 | . 5 . 20 Special 8 | . . 8 . Kinetic 178 | 14 103 57 4 Thermal 15 | . . 12 3 Explosive 25 | . 5 . 20 Electromagnetic . | . . . . Robot Hit Streak 14 | 4 8 14 10 Robot Miss Streak 6 | 1 6 3 1 Penetration Max . | . . . . Secondary Targets 2 | . 2 . . Max Gunslinging Chain 1 | . 1 . . Shots Hit Robots 138 | 9 63 49 17 Core Hits 86 | 4 44 14 24 Critical Kills . | . . . . Critical Parts Destroyed . | . . . . Critical Strikes . | . . . . Melee Attacks . | . . . . Impact . | . . . . Slashing . | . . . . Piercing . | . . . . Sneak Attacks . | . . . . Combat Hostiles . | . . . . Follow-up Attacks . | . . . . Damage Inflicted 2999 | 96 1401 488 1014 Guns 1077 | 96 635 317 29 Cannons 101 | . . 51 50 Explosions 1701 | . 766 . 935 Melee . | . . . . Ramming . | . . . . Kinetic 1077 | 96 635 317 29 Thermal 221 | . . 171 50 Explosive 1701 | . 766 . 935 Electromagnetic . | . . . . Impact . | . . . . Slashing . | . . . . Piercing . | . . . . Highest Corruption . | . . . . Average Corruption . | . . . . Corruption Purged . | . . . . Corruption Blocked . | . . . . Overload Shots . | . . . . Overflow Damage 66 | . 8 . 58 Projectiles . | . . . . Explosions 66 | . 8 . 58 Melee . | . . . . Knockbacks . | . . . . Impact . | . . . . Kinetic . | . . . . Secondary . | . . . . Self-Inflicted Damage 247 | . . . 247 Shots 10 | . . . 10 Rammed . | . . . . Targets Rammed . | . . . . Kicked . | . . . . Crushed . | . . . . Highest Temperature 158 | . 27 20 158 Average Temperature 38 | . 8 15 68 Received Heat Transfer 846 | . 171 117 558 Siege Activations . | . . . . Martial Activations . | . . . . Shielding Activations . | . . . . Robots Disrupted . | . . . . Combat Hostiles . | . . . . Robots Corrupted . | . . . . Combat Hostiles . | . . . . Parts Fried . | . . . . Impact Corruptions . | . . . . Robots Melted . | . . . . Combat Hostiles . | . . . . Parts Melted . | . . . . Heat Transferred 398 | . . 324 74 Parts Sabotaged . | . . . . Parts Stolen . | . . . . Parts Stripped . | . . . . Power Chain Reactions . | . . . . Alert | -11 -10 -10 -8 ------- Run | Yrd Mat Sub Mat Maximum Alert Level 1 | . 1 . 1 Low Security (%) 57 | 100 51 . 70 Level 1 42 | . 48 . 29 Level 2 . | . . . . Level 3 . | . . . . Level 4 . | . . . . Level 5 . | . . . . High Security . | . . . . Max Security . | . . . . Peak Influence 298 | 5 298 . 248 Initial . | . . . . Average 134 | . 147 . 117 Influence Increases 930 | 10 609 . 311 Destroy 0b10 Robot/C 560 | . 400 . 160 Destroy 0b10 Robot/NC 65 | 10 45 . 10 Destroy Leader 120 | . 80 . 40 Successful Hack 12 | . 12 . . Select Force Hacks 30 | . 30 . . Disable Machine 30 | . . . 30 Destroy Structure 113 | . 42 . 71 Influence Decreases 752 | 10 329 280 133 Entered New Map 135 | . . 135 . Time Decay 545 | 10 319 135 81 Lost Part 72 | . 10 10 52 Squads Dispatched 6 | . 3 . 3 Investigation 3 | . 2 . 1 Extermination . | . . . . Reinforcement 3 | . 1 . 2 Assault . | . . . . Garrison . | . . . . Intercept . | . . . . Searches Triggered . | . . . . Construction Impeded 1 | . . . 1 Haulers Reinforced . | . . . . Active Scanning Responses . | . . . . Cargo Convoy Interrupts . | . . . . Stealth | -11 -10 -10 -8 --------- Run | Yrd Mat Sub Mat Distress Signals . | . . . . Communications Jammed . | . . . . Distress Signals . | . . . . Times Spotted 44 | . 27 6 11 Peak Tracking Total 4 | . 3 2 4 Tactical Retreats . | . . . . Traps | -11 -10 -10 -8 ------- Run | Yrd Mat Sub Mat Traps Triggered 1 | . . 1 . Indirectly . | . . . . Trap Hack Attempts . | . . . . Triggered . | . . . . Disarmed . | . . . . Reprogrammed . | . . . . Reused . | . . . . Traps Extracted . | . . . . Installed . | . . . . Triggered . | . . . . Machines | -11 -10 -10 -8 ---------- Run | Yrd Mat Sub Mat Machines Disabled 2 | . . . 2 Max in Single Turn 1 | . . . 1 Machines Repaired . | . . . . Machines Dismantled . | . . . . Machines Sabotaged . | . . . . Overloaded Fab Kills . | . . . . Hacking | -11 -10 -10 -8 --------- Run | Yrd Mat Sub Mat Machines Accessed 9 | . 6 1 2 Terminals 5 | . 4 . 1 Fabricators . | . . . . Repair Stations . | . . . . Recycling Units 2 | . 2 . . Scanalyzers 1 | . . . 1 Garrison Access . | . . . . Total Hacks 20 | . 13 4 3 Successful 9 | . 4 4 1 Failed 11 | . 9 . 2 Catastrophic 2 | . 1 . 1 Database Lockouts . | . . . . Manual 10 | . 8 . 2 Terminals 11 | . 9 . 2 Fabricators . | . . . . Repair Stations . | . . . . Recycling Units 4 | . 4 . . Scanalyzers 1 | . . . 1 Garrison Access . | . . . . Terminal Hacks 6 | . 2 4 . Record 4 | . . 4 . Prototype ID Bank 2 | . 2 . . Fabricator Hacks . | . . . . Repair Station Hacks . | . . . . Recycling Unit Hacks . | . . . . Scanalyzer 1 | . . . 1 Retrieve Study 1 | . . . 1 Garrison Access Hacks . | . . . . Unauthorized Hacks 2 | . 2 . . Terminals 1 | . 1 . . Botnet 1 | . 1 . . Fabricators . | . . . . Repair Stations . | . . . . Recycling Units 1 | . 1 . . Tunnel 1 | . 1 . . Scanalyzers . | . . . . Garrison Access . | . . . . Data Cores Recovered . | . . . . Used . | . . . . Hacking Detections 6 | . 5 . 1 Full Trace Events 2 | . 1 . 1 Feedback Events . | . . . . Feedback Blocked . | . . . . Robot Schematics Acquired . | . . . . Robots Built . | . . . . Authchips . | . . . . Time . | . . . . Total Robot Build Rating . | . . . . Part Schematics Acquired . | . . . . Parts Built . | . . . . Authchips . | . . . . Time . | . . . . Total Part Build Rating . | . . . . Part Studies Acquired 1 | . . . 1 Parts Repaired . | . . . . Time . | . . . . Parts Recycled . | . . . . Recycled Matter . | . . . . Retrieved Matter . | . . . . Retrieved Components . | . . . . Parts Scanalyzed . | . . . . Part Schematics Acquired . | . . . . Parts Damaged . | . . . . Bothacking | -11 -10 -10 -8 ------------ Run | Yrd Mat Sub Mat Used RIF Installer . | . . . . Robots Hacked . | . . . . Non-combat . | . . . . Combat . | . . . . Robot Hacks Applied . | . . . . Relay Couplers Released . | . . . . Fabnet Peak Effective % . | . . . . Robots Rewired . | . . . . Allies Hacked . | . . . . Hacks Repelled . | . . . . Allies | -11 -10 -10 -8 -------- Run | Yrd Mat Sub Mat Total Allies . | . . . . Largest Group . | . . . . Highest-Rated Group . | . . . . Highest-Rated Ally . | . . . . Total Orders . | . . . . Ally Attacks . | . . . . Total Damage . | . . . . Kills . | . . . . Allies Corrupted . | . . . . Allies Melted . | . . . . Intel | -11 -10 -10 -8 ------- Run | Yrd Mat Sub Mat Active Infowar (turns) 2275 | . 1201 796 278 Optics 2275 | . 1201 796 278 Robot Analysis Total . | . . . . Derelict Logs Recovered . | . . . . Drone Launches . | . . . . Drone Recoveries . | . . . . Exploration | -11 -10 -10 -8 ------------- Run | Yrd Mat Sub Mat Turns Passed 2396 | 82 1240 796 278 Spaces Moved 1493 | 45 839 486 123 Core 31 | 23 . 1 7 Treads . | . . . . Legs 667 | 22 580 65 . Wheels 795 | . 259 420 116 Hover . | . . . . Flight . | . . . . Fastest Speed 50 | 50 115 120 130 Average Speed 125 | 105 118 129 166 Slowest Speed 700 | 120 190 400 700 Overloaded Moves . | . . . . Propulsion Burnouts . | . . . . Robots Hopped . | . . . . Potential Cave-ins . | . . . . Cave-ins Triggered . | . . . . Exploration Rate (%) 35 | 3 89 35 14 Regions Visited 3 Branch Regions 1 Pre-discovered Areas 1 | . 1 . . Known Exits Taken . | . . . . Unknown Exits Taken 3 | 1 1 1 . Scrap Searched . | . . . . Spaces Dug . | . . . . Terrain Destroyed 142 | . 46 . 96 Melee . | . . . . Projectile 1 | . . . 1 AOE 141 | . 46 . 95 Terrain Rammed . | . . . . Walls Destroyed . | . . . . Machines Disabled . | . . . . Actions | -11 -10 -10 -8 --------- Run | Yrd Mat Sub Mat Total 1800 | 67 983 580 170 Wait 88 | . 56 22 10 Move 1490 | 44 838 485 123 Hop . | . . . . Pick Up 31 | 10 11 6 4 Fast Attach 3 | . 1 2 . Attach 22 | 6 3 6 7 Detach 4 | . 1 1 2 Swap 11 | . 10 1 . Drop 11 | . 7 4 . Fire 140 | 7 56 53 24 Melee . | . . . . Ram . | . . . . Kick . | . . . . Crush . | . . . . Escape Stasis . | . . . . Rewire . | . . . . Trap . | . . . . Miscellaneous . | . . . . Route ------- -11/Scrapyard -10/Materials (discovered 5 exits: [*Mat x2] / [*Min x2] / *Sub) -10/Subcaves (discovered 3 exits: *Mat / Rec / [*Scr]) -8/Materials History --------- Turn | Location | Event 2 | -11/Scrapyard | Met Revision 17 38 | -11/Scrapyard | Discovered new exit (range 14) 83 | -11/Scrapyard | Entered Materials 142 | -10/Materials | Discovered new exit (range 8) 183 | -10/Materials | Discovered new exit (range 15) 314 | -10/Materials | Build established: Mutant 694 | -10/Materials | Discovered new exit (range 4) 1096 | -10/Materials | Discovered new exit (range 5) 1130 | -10/Materials | Discovered new exit (range 7) 1323 | -10/Materials | Entered Subcaves 1324 | -10/Subcaves | Approached by a straggling Scientist 1448 | -10/Subcaves | Core integrity fell below 50% 1729 | -10/Subcaves | Discovered new exit (range 5) 1760 | -10/Subcaves | Visited Clippyterm 1764 | -10/Subcaves | Identified exit to Recycling 1788 | -10/Subcaves | A swath of the cavern ceiling suddenly collapsed 1981 | -10/Subcaves | Disturbed a concealed Subdweller 2018 | -10/Subcaves | Core integrity fell below 20% 2046 | -10/Subcaves | Lost 4 parts (1p2n1w) 2119 | -10/Subcaves | Entered Materials 2119 | -8/Materials | Evolved 4 slots: Propulsion x2, Utility x2 2263 | -8/Materials | Core integrity fell below 50% 2273 | -8/Materials | Lost 6 parts (2n1u3w) 2287 | -8/Materials | Destroyed 8 combat bots 2355 | -8/Materials | Core integrity fell below 20% 2397 | -8/Materials | Self-destructed Last Messages --------------- 02307_ U-05 Engineer lays Concrete. 02316_ Mni. Grenade Launcher destroyed. 02320_ U-05 Engineer lays Concrete. 02322_ Acquired 39 matter. 02323_ U-05 Engineer lays Concrete. 02324_ U-05 Engineer builds a Wall. 02325_ U-05 Engineer lays Concrete. 02338_ Connecting with Terminal... 02338_ ALERT: Suspicious activity at Terminal M009. Dispatching Investigation squad. 02345_ The unstable cave ceiling collapses. 02345_ U-05 Engineer builds a Wall. 02366_ U-05 Engineer lays Concrete. 02368_ U-05 Engineer builds a Wall. 02369_ The unstable cave ceiling collapses. 02372_ U-05 Engineer lays Concrete. 02378_ Acquired 15 matter. 02378_ U-05 Engineer lays Concrete. 02393_ U-05 Engineer builds a Wall. 02397_ U-05 Engineer lays Concrete. Map ----- +----------------------------------------------------+ | ???????????????# % # #?? | | ???????????????# # # ##? | | ???????????????# # #+# # #? | | ???????????????# # ?? | | ????????????? ##? | | ????????????######## # ?? | | ????????????????????# ##?? | | ???????????????????## #?? | | ??????##########??## #?? | | ??????# #### # ##?? | | ??????#" """ # ##?? | | ??????#" """ ## ## #??? | | ??????#" """ ##+##+# ###?? | | ??????#T #?? | | ??????#" """ u ##?? | | ??????#" """ ##g ###? | | ??????#" """ # ##g # | | ??????# ### # ## " # | | ??????######## ### # # T # | | ?????????????###?#! # # " # | | ?????????????????# """ + + # | | ?????????????????# """ # # # | | ?????????????????# """ # #[ %# | | ?????????????????# # #? # | | ?????????????????######## #?* =? | | ?????????????????# /@ #?#### | | ?????????????????# # #????? | | ?????????????????#!! "# #????? | | ?????????????????#!! ?####????? | | ?????????????????#! ?????????? | | ?????????????????# ??????????? | | ?????????????????# ###??????????? | | ?????????????????#??????????????? | | ????????????????????????????????? | | ????????????????????????????????? | | ????????????????????????????????? | | | | | | | | | | | | | | | | | | | | | | | | | | | | | +----------------------------------------------------+ Best States ------------- Heat Dissipation 31 Energy Generation 15 Energy Capacity 250 Matter Stores 300 Matter Capacity 300 Sight Range 18 Terrain Scan Density 10 Armor Coverage 150 Resistance: KI 20 Evasion (%) 55 Item Schematics ----------------- None Robot Schematics ------------------ None Fabricated ------------ Nothing Repaired ---------- Nothing Studied --------- Com. Wheel | -8/Materials | Hacked Alien Tech Used ----------------- None Achievements -------------- None Challenges ------------ None Game ------ Seed OpticalTimingCloak Manual? 0 Play Time 00:23:47 Cumulative 395.0 hours Start 2026.02.10 @ 09:16:03 End 2026.02.10 @ 09:39:36 Sessions 1 Manual Loads 0 Difficulty Rogue Special Mode None Game No. 283 Rogue 273 Adventurer 0 Explorer 10 Win Type - Total 5 Types 5/0/0/0/0/0/0/0/0/0 Lore% 81 Gallery% 66 Achievement% 43 Wizard Run 0 Options --------- Layout 2 ASCII 0 Keyboard 0 Movement Mouse Keybinds 1 Fullscreen 1 Font 24/Smallcaps Map View 50x44 Zoom Use 0% Tactical HUD 1 Map Filters NONE Filters NONE Steam 1 RUN: 630aae12-1de7-4e59-9258-0b4da07bfab6